bitfinex/quotes_BTCUSD_20220205
["timestamp","ask_amount","ask_price","bid_price","bid_amount"]
[1644027271285,0.25873417,41316.0,41311.0,0.060507]
[1644027271588,0.326364,41315.0,41311.0,0.060507]
[1644027273535,0.16118253,41314.0,41311.0,0.060507]
[1644027275780,0.15618253,41314.0,41311.0,0.060507]
[1644027275984,0.18152099,41310.0,41309.0,0.00083502]
[1644027276183,0.0485,41310.0,41309.0,0.00083502]
[1644027276381,0.379883,41310.0,41309.0,0.00083502]
[1644027276582,0.379883,41310.0,41302.0,0.05]
[1644027276787,0.07953008,41306.0,41302.0,0.05]
[1644027277086,0.2414594,41305.0,41302.0,0.05]
[1644027278685,0.2414594,41305.0,41301.0,0.0613571]
[1644027279238,0.2414594,41305.0,41301.0,0.060522]
[1644027279734,0.2414594,41305.0,41298.0,0.171042]
[1644027279935,0.1954834,41306.0,41298.0,0.18156237]
[1644027280135,0.0485,41307.0,41301.0,0.279797]
[1644027281138,0.0485,41307.0,41303.0,0.17311949]
[1644027281337,0.0485,41307.0,41302.0,0.060517]
[1644027281737,0.0485,41307.0,41303.0,0.00081306]
[1644027281941,0.0185,41307.0,41303.0,0.00081306]
[1644027282641,0.0185,41307.0,41302.0,0.060517]
[1644027282841,0.0185,41307.0,41303.0,0.00081306]
[1644027283884,0.0185,41307.0,41302.0,0.12103138]
[1644027284085,0.0185,41307.0,41303.0,0.00079166]
[1644027284284,0.17815182,41308.0,41303.0,0.00079166]
[1644027284493,0.22665182,41308.0,41304.0,0.060519]
[1644027286288,0.19765182,41308.0,41304.0,0.060519]
[1644027287739,0.19765182,41308.0,41304.0,0.06135313]
[1644027288440,0.17065182,41308.0,41304.0,0.06135313]
[1644027288639,0.17065182,41308.0,41304.0,0.060519]
[1644027288841,0.17065182,41308.0,41304.0,0.06135313]
[1644027289743,0.17065182,41308.0,41304.0,0.05635313]
[1644027289939,0.17065182,41308.0,41304.0,0.055519]
[1644027290139,0.17065182,41308.0,41304.0,0.05635313]
[1644027290339,0.14065182,41308.0,41304.0,0.05635313]
[1644027290983,0.14065182,41308.0,41304.0,0.055519]
[1644027291183,0.14065182,41308.0,41304.0,0.05635313]
[1644027291986,0.11565182,41308.0,41304.0,0.05635313]
[1644027292186,0.11565182,41308.0,41304.0,0.055519]
[1644027292391,0.11565182,41308.0,41304.0,0.05635313]
[1644027293490,0.11565182,41308.0,41304.0,0.055519]
[1644027293689,0.11565182,41308.0,41304.0,0.05635313]
[1644027294090,0.08565182,41308.0,41304.0,0.05635313]
[1644027294338,0.08065182,41308.0,41304.0,0.05635313]
[1644027294737,0.08065182,41308.0,41304.0,0.055519]
[1644027294942,0.08065182,41308.0,41304.0,0.05635313]
[1644027295940,0.0485,41308.0,41304.0,0.055519]
[1644027296139,0.0485,41308.0,41304.0,0.05635313]
[1644027296339,0.0225,41308.0,41304.0,0.05635313]
[1644027297139,0.0225,41308.0,41304.0,0.055519]
[1644027297342,0.0225,41308.0,41304.0,0.05635313]
[1644027297547,0.0225,41308.0,41305.0,0.331383]
[1644027297984,0.1177,41313.0,41309.0,0.0065]
[1644027298186,0.0485,41312.0,41309.0,0.067013]
[1644027298384,0.0485,41311.0,41309.0,0.067013]
[1644027298584,0.20657569,41314.0,41309.0,0.23421871]
[1644027298984,0.331383,41313.0,41309.0,0.067013]
[1644027299186,0.25373741,41310.0,41309.0,0.067013]
[1644027299589,0.25373741,41310.0,41309.0,0.06134707]
[1644027299991,0.25373741,41310.0,41309.0,0.27056976]
[1644027300194,0.20657569,41314.0,41309.0,0.27056976]
[1644027300590,0.20657569,41314.0,41309.0,0.26973569]
[1644027300789,0.20657569,41314.0,41309.0,0.27056976]
[1644027301590,0.331383,41313.0,41309.0,0.27056976]
[1644027301836,0.20657569,41314.0,41309.0,0.26973569]
[1644027302036,0.24699234,41315.0,41309.0,0.27056976]
[1644027302237,0.29699234,41315.0,41309.0,0.27056976]
[1644027302435,0.331383,41314.0,41309.0,0.06134707]
[1644027303034,0.331383,41314.0,41309.0,0.060513]
[1644027303235,0.331383,41314.0,41309.0,0.06134707]
[1644027303436,0.331383,41314.0,41311.0,0.06051]
[1644027304039,0.5801,41317.0,41311.0,0.06051]
[1644027304239,0.060509,41318.0,41311.0,0.06051]
[1644027305039,0.27632846,41317.0,41310.0,0.19597818]
[1644027305239,0.331383,41316.0,41310.0,0.19597818]
[1644027305885,0.060508,41315.0,41310.0,0.19597818]
[1644027307589,0.060509,41318.0,41310.0,0.19597818]
[1644027307791,0.555316,41322.0,41310.0,0.25648218]
[1644027307792,0.1697,41321.0,41310.0,0.25648218]
[1644027308389,0.1197,41321.0,41310.0,0.25648218]
[1644027308591,0.20443854,41318.0,41310.0,0.25648218]
[1644027308790,0.20443854,41318.0,41312.0,0.060497]
[1644027308990,0.50443854,41318.0,41312.0,0.060497]
[1644027309242,0.47643854,41318.0,41312.0,0.060497]
[1644027309534,0.2508506,41315.0,41312.0,0.060497]
[1644027309734,0.2508506,41315.0,41314.0,0.05]
[1644027309936,0.2508506,41315.0,41312.0,0.060497]
[1644027310334,0.2508506,41315.0,41312.0,0.110497]
[1644027310934,0.2238506,41315.0,41312.0,0.110497]
[1644027311135,0.2238506,41315.0,41313.0,0.05]
[1644027311337,0.2238506,41315.0,41314.0,0.120996]
[1644027312988,0.2078506,41315.0,41314.0,0.120996]
[1644027313388,0.2078506,41315.0,41314.0,0.452379]
[1644027314491,0.1254253,41315.0,41314.0,0.452379]
[1644027314693,0.2078506,41315.0,41314.0,0.452379]
[1644027314888,0.1998506,41315.0,41314.0,0.452379]
[1644027315290,0.0824253,41315.0,41314.0,0.452379]
[1644027315491,0.1998506,41315.0,41314.0,0.452379]
[1644027317542,0.2023506,41315.0,41314.0,0.452379]
[1644027321089,0.1943506,41315.0,41314.0,0.452379]
[1644027321288,0.1199253,41315.0,41314.0,0.452379]
[1644027321489,0.1943506,41315.0,41314.0,0.452379]
[1644027323090,0.1943506,41315.0,41314.0,0.502379]
[1644027323291,0.1873506,41315.0,41314.0,0.60742382]
[1644027323495,0.0769253,41315.0,41314.0,0.60742382]
[1644027323690,0.16943257,41315.0,41314.0,0.60742382]
[1644027324090,0.16943257,41315.0,41314.0,0.65742382]
[1644027324939,0.16943257,41315.0,41314.0,0.75742382]
[1644027325142,0.15243257,41315.0,41314.0,0.75742382]
[1644027326543,0.1104253,41315.0,41314.0,0.75742382]
[1644027326843,0.15243257,41315.0,41314.0,0.75742382]
[1644027327042,0.13743257,41315.0,41314.0,0.75742382]
[1644027327844,0.13743257,41315.0,41314.0,0.65742382]
[1644027328696,0.04200727,41315.0,41314.0,0.65742382]
[1644027329091,0.13743257,41315.0,41314.0,0.65742382]
[1644027329497,0.13743257,41315.0,41314.0,0.64742382]
[1644027330492,0.12543257,41315.0,41314.0,0.64742382]
[1644027330693,0.12543257,41315.0,41314.0,0.60742382]
[1644027331941,0.0954253,41315.0,41314.0,0.65742382]
[1644027332240,0.12543257,41315.0,41314.0,0.65742382]
[1644027334145,0.10943257,41315.0,41314.0,0.65742382]
[1644027334345,0.03000727,41315.0,41314.0,0.65742382]
[1644027334543,0.10943257,41315.0,41314.0,0.65742382]
[1644027336201,0.09143257,41315.0,41314.0,0.65742382]
[1644027340140,0.07443257,41315.0,41314.0,0.65742382]
[1644027340343,0.01200727,41315.0,41314.0,0.65742382]
[1644027340741,0.07443257,41315.0,41314.0,0.65742382]
[1644027342643,0.05943257,41315.0,41314.0,0.65742382]
[1644027344299,0.04343257,41315.0,41314.0,0.65742382]
[1644027345596,0.00034998,41325.0,41314.0,0.65742382]
[1644027345896,0.00034998,41325.0,41322.0,0.060495]
[1644027346097,0.25757508,41326.0,41322.0,0.25049977]
[1644027346944,0.00034998,41326.0,41322.0,0.25049977]
[1644027347141,0.16272812,41327.0,41322.0,0.25049977]
[1644027347743,0.15772812,41327.0,41322.0,0.25049977]
[1644027349144,0.15772812,41327.0,41322.0,0.060495]
[1644027349549,0.15772812,41327.0,41321.0,0.05]
[1644027349744,0.27510112,41326.0,41321.0,0.05]
[1644027349946,0.2754511,41326.0,41321.0,0.05]
[1644027350144,0.3359491,41326.0,41321.0,0.110498]
[1644027350988,0.26646709,41324.0,41321.0,0.110498]
[1644027352792,0.26646709,41324.0,41323.0,0.1]
[1644027353092,0.02843257,41324.0,41323.0,0.1]
[1644027353294,0.02843257,41324.0,41323.0,0.160496]
[1644027355445,0.02843257,41324.0,41323.0,9.491879]
[1644027356044,0.00034998,41329.0,41324.0,0.279416]
[1644027356245,0.00034998,41326.0,41325.0,0.060486]
[1644027356446,0.00034998,41330.0,41325.0,0.39185]
[1644027356653,0.00179513,41331.0,41326.0,0.331383]
[1644027356654,0.00214511,41331.0,41326.0,0.331383]
[1644027356848,0.00034998,41330.0,41328.0,0.05]
[1644027357146,0.001,41331.0,41329.0,0.129352]
[1644027357350,0.00214515,41331.0,41329.0,0.129352]
[1644027357546,0.00179517,41331.0,41330.0,0.15298761]
[1644027357746,0.00179517,41331.0,41330.0,0.48433661]
[1644027357985,0.00179517,41331.0,41330.0,0.60529761]
[1644027358393,0.001,41331.0,41330.0,0.60529761]
[1644027360189,0.21591452,41338.0,41331.0,0.3]
[1644027360391,0.00035345,41333.0,41332.0,0.331327]
[1644027360590,0.5879,41339.0,41330.0,0.33442736]
[1644027360591,0.00035345,41338.0,41330.0,0.33442736]
[1644027360790,0.00035345,41338.0,41330.0,0.27394861]
[1644027361192,0.58825345,41339.0,41330.0,0.27394861]
[1644027361394,0.02843257,41334.0,41330.0,0.27394861]
[1644027361841,0.02843257,41334.0,41333.0,0.06048]
[1644027362039,0.02843257,41334.0,41333.0,0.65131409]
[1644027362440,0.02843257,41334.0,41333.0,0.94090435]
[1644027363237,0.02843257,41334.0,41333.0,0.65131409]
[1644027363438,0.02843257,41334.0,41333.0,0.391807]
[1644027364840,0.02843257,41334.0,41333.0,0.541807]
[1644027365039,0.02843257,41334.0,41333.0,0.391807]
[1644027365488,0.02843257,41334.0,41333.0,0.67828826]
[1644027366186,0.02843257,41334.0,41333.0,0.391807]
[1644027366587,0.02843257,41334.0,41333.0,0.441807]
[1644027366789,0.02843257,41334.0,41333.0,0.391807]
[1644027367188,0.02843257,41334.0,41333.0,0.67760147]
[1644027367390,0.02843257,41334.0,41333.0,0.87796096]
[1644027367592,0.002,41340.0,41336.0,0.00115]
[1644027367796,0.002,41342.0,41336.0,0.00115]
[1644027367797,0.002,41342.0,41341.0,0.129309]
[1644027368189,0.002,41342.0,41341.0,0.179309]
[1644027368590,0.002,41342.0,41341.0,0.222809]
[1644027368789,0.002,41342.0,41341.0,0.322809]
[1644027369245,0.002,41342.0,41341.0,0.422809]
[1644027369840,0.002,41342.0,41341.0,0.322809]
[1644027370241,0.002,41342.0,41341.0,0.222809]
[1644027370448,0.002,41342.0,41341.0,0.322809]
[1644027371643,0.002,41342.0,41341.0,0.222809]
[1644027371842,0.002,41342.0,41341.0,0.322809]
[1644027372844,0.002,41342.0,41341.0,0.222809]
[1644027373691,0.002,41342.0,41341.0,0.179309]
[1644027373894,0.002,41342.0,41340.0,0.160454]
[1644027374095,0.002,41342.0,41340.0,0.1]
[1644027374695,0.002,41342.0,41340.0,0.46395185]
[1644027374901,0.002,41342.0,41341.0,0.331327]
[1644027375096,0.002,41342.0,41341.0,0.05]
[1644027375097,0.0505,41342.0,41341.0,0.05]
[1644027375993,0.002,41342.0,41341.0,0.05]
[1644027376494,0.002,41342.0,41341.0,0.381327]
[1644027377739,0.002,41342.0,41341.0,0.331327]
[1644027382498,0.003,41347.0,41343.0,0.23628574]
[1644027382695,0.0515,41347.0,41344.0,0.129229]
[1644027383295,0.0515,41347.0,41341.0,0.12092]
[1644027383500,0.05185334,41347.0,41342.0,0.331327]
[1644027384938,0.05269156,41347.0,41342.0,0.331327]
[1644027385439,0.05269156,41347.0,41343.0,0.060463]
[1644027386044,0.05185334,41347.0,41344.0,0.331327]
[1644027386243,0.04229383,41347.0,41344.0,0.331327]
[1644027386640,0.04229383,41347.0,41343.0,0.060463]
[1644027386842,0.04264717,41347.0,41344.0,0.331327]
[1644027387041,0.04229383,41347.0,41343.0,0.060463]
[1644027387242,0.04185334,41347.0,41343.0,0.060463]
[1644027387446,0.04185334,41347.0,41341.0,0.12092]
[1644027387742,0.04185334,41347.0,41346.0,0.129198]
[1644027387995,0.0415,41347.0,41346.0,0.129198]
[1644027388397,0.0415,41347.0,41346.0,0.18966]
[1644027389296,0.0415,41347.0,41346.0,0.060462]
[1644027389699,0.0065,41347.0,41346.0,0.060462]
[1644027389897,0.0065,41347.0,41346.0,0.065462]
[1644027390096,0.0015,41347.0,41346.0,0.065462]
[1644027390698,0.001,41348.0,41346.0,0.065462]
[1644027390897,0.01835334,41349.0,41346.0,0.065462]
[1644027391101,0.01833892,41349.0,41346.0,0.065462]
[1644027391742,0.01333892,41349.0,41346.0,0.065462]
[1644027391935,0.013,41349.0,41346.0,0.065462]
[1644027393437,0.331293,41348.0,41346.0,0.065462]
[1644027393837,0.21086203,41347.0,41346.0,0.065462]
[1644027394037,0.25936203,41347.0,41346.0,0.065462]
[1644027394837,0.25436203,41347.0,41346.0,0.065462]
[1644027395138,0.25436203,41347.0,41346.0,0.005]
[1644027395339,0.58565503,41347.0,41346.0,0.005]
[1644027397594,0.91556118,41347.0,41346.0,0.005]
[1644027397792,0.58565503,41347.0,41346.0,0.005]
[1644027397992,0.90549054,41347.0,41346.0,0.005]
[1644027398191,0.58565503,41347.0,41346.0,0.005]
[1644027399537,0.58065503,41347.0,41346.0,0.005]
[1644027403596,0.58055603,41347.0,41346.0,0.005]
[1644027404596,0.379793,41347.0,41346.0,0.005]
[1644027404994,0.374793,41347.0,41346.0,0.005]
[1644027407642,0.0435,41347.0,41346.0,0.005]
[1644027408043,0.01364856,41349.0,41346.0,0.055]
[1644027408240,0.01329522,41349.0,41347.0,0.129194]
[1644027408541,0.01329522,41349.0,41348.0,0.060454]
[1644027408740,0.01329522,41349.0,41348.0,0.110454]
[1644027409041,0.013,41349.0,41348.0,0.060454]
[1644027409439,0.013,41349.0,41347.0,0.005041]
[1644027410508,0.013,41349.0,41346.0,0.005]
[1644027410704,0.008,41349.0,41346.0,0.005]
[1644027412106,0.331293,41348.0,41346.0,0.005]
[1644027413911,0.06882034,41349.0,41346.0,0.005]
[1644027414249,0.008,41349.0,41346.0,0.005]
[1644027417544,0.05,41347.0,41341.0,0.220923]
[1644027417745,0.00835334,41349.0,41342.0,0.20332837]
[1644027417990,0.05,41344.0,41342.0,0.20332837]
[1644027418289,0.05,41344.0,41343.0,0.129206]
[1644027420193,0.05,41344.0,41343.0,0.4729478]
[1644027420392,0.05,41344.0,41343.0,0.4124868]
[1644027420591,0.05,41344.0,41343.0,0.129206]
[1644027420992,0.04970417,41344.0,41343.0,0.12950183]
[1644027421394,0.04970417,41344.0,41343.0,0.33592092]
[1644027421843,0.04970417,41344.0,41343.0,0.129206]
[1644027422042,0.04970417,41344.0,41340.0,0.00533804]
[1644027422351,0.04970417,41344.0,41341.0,0.129218]
[1644027422542,0.04970417,41344.0,41342.0,0.060466]
[1644027423042,0.04970417,41344.0,41340.0,0.22626304]
[1644027423242,0.05005751,41344.0,41340.0,0.22626304]
[1644027423644,0.00035334,41347.0,41341.0,0.129218]
[1644027423842,0.04970417,41342.0,41341.0,0.129217]
[1644027425591,0.04970417,41342.0,41341.0,0.124217]
[1644027426092,0.00084636,41344.0,41342.0,0.184678]
[1644027426292,0.00084636,41344.0,41343.0,0.00029583]
[1644027426494,0.00084636,41344.0,41343.0,0.12450683]
[1644027426893,0.04970417,41345.0,41343.0,0.12450683]
[1644027428797,0.04970417,41345.0,41344.0,0.1]
[1644027434595,0.04970417,41345.0,41344.0,0.224206]
[1644027436395,0.04970417,41345.0,41344.0,0.1]
[1644027439549,0.20699323,41354.0,41346.0,0.85]
[1644027439750,0.02011024,41358.0,41353.0,0.05]
[1644027439947,0.02011024,41358.0,41357.0,0.05503974]
[1644027440608,0.02011024,41358.0,41351.0,0.120899]
[1644027440609,0.58633884,41358.0,41351.0,0.120899]
[1644027440800,0.301295,41357.0,41351.0,0.120899]
[1644027441000,0.301295,41357.0,41346.0,0.12089849]
[1644027441001,0.349795,41357.0,41346.0,0.47089849]
[1644027441198,0.349795,41357.0,41346.0,0.12089849]
[1644027441399,0.28633884,41358.0,41346.0,0.17089849]
[1644027441599,0.28633884,41358.0,41351.0,0.20277357]
[1644027441600,0.2672286,41358.0,41351.0,0.20277357]
[1644027441899,0.2672286,41358.0,41352.0,0.06045351]
[1644027441900,0.331288,41357.0,41352.0,0.06045351]
[1644027442602,0.08546089,41358.0,41352.0,0.12090751]
[1644027442998,0.001,41358.0,41352.0,0.12090751]
[1644027443399,0.001,41358.0,41354.0,0.060452]
[1644027443599,0.001,41358.0,41355.0,0.060451]
[1644027443798,0.001,41358.0,41355.0,0.12090234]
[1644027444000,0.01784832,41359.0,41355.0,0.12090234]
[1644027444249,0.331288,41358.0,41355.0,0.12090234]
[1644027444445,0.331288,41358.0,41355.0,0.06045134]
[1644027444744,0.331288,41358.0,41356.0,0.16043302]
[1644027445046,0.321288,41358.0,41356.0,0.060452]
[1644027446146,0.01784832,41359.0,41357.0,0.19587467]
[1644027446347,0.01784832,41359.0,41356.0,0.060452]
[1644027446946,0.01784832,41359.0,41358.0,0.05]
[1644027447346,0.01784832,41359.0,41358.0,0.23619686]
[1644027447546,0.06784832,41359.0,41353.0,0.12141177]
[1644027447746,0.06784832,41359.0,41354.0,0.164163]
[1644027448196,0.06784832,41359.0,41356.0,0.060452]
[1644027448596,0.06784832,41359.0,41356.0,0.2343756]
[1644027448797,0.06784832,41359.0,41356.0,0.060452]
[1644027449197,0.11634832,41359.0,41356.0,0.060452]
[1644027449999,0.06784832,41359.0,41356.0,0.060452]
[1644027451499,0.0485,41358.0,41356.0,0.060452]
[1644027454847,0.04885326,41358.0,41356.0,0.060452]
[1644027455049,0.04885326,41358.0,41353.0,0.12175418]
[1644027455252,0.27519808,41354.0,41353.0,0.28592118]
[1644027455692,0.27519808,41354.0,41353.0,0.285071]
[1644027456495,0.27519808,41354.0,41353.0,0.43252751]
[1644027456695,0.27519808,41354.0,41353.0,0.285071]
[1644027458798,0.32369808,41354.0,41353.0,0.285071]
[1644027460040,0.0985,41354.0,41353.0,0.285071]
[1644027462998,0.00035326,41357.0,41354.0,0.85]
[1644027463202,0.01784832,41359.0,41354.0,0.85]
[1644027463203,0.00035326,41358.0,41356.0,0.05]
[1644027463399,0.01869834,41359.0,41357.0,0.164151]
[1644027463400,0.0190516,41359.0,41357.0,0.164151]
[1644027463599,0.00035326,41358.0,41357.0,0.164151]
[1644027463804,0.0190516,41359.0,41357.0,0.164151]
[1644027464001,0.0190516,41359.0,41357.0,0.285037]
[1644027464204,0.01820158,41359.0,41355.0,0.060453]
[1644027464600,0.01820158,41359.0,41355.0,0.055453]
[1644027465802,0.16210048,41357.0,41356.0,0.164154]
[1644027466203,0.00035326,41358.0,41356.0,0.164154]
[1644027466406,0.19331826,41358.0,41355.0,0.055453]
[1644027466603,0.19367152,41358.0,41355.0,0.055453]
[1644027467246,0.19569473,41357.0,41355.0,0.055453]
[1644027467445,0.19604799,41357.0,41355.0,0.055453]
[1644027467645,0.00035326,41357.0,41355.0,0.055453]
[1644027467846,0.19367152,41358.0,41356.0,0.164154]
[1644027468045,0.00035326,41357.0,41356.0,0.164154]
[1644027468246,0.19367152,41358.0,41356.0,0.164154]
[1644027468846,0.19367152,41358.0,41355.0,0.055453]
[1644027470595,0.00035326,41358.0,41356.0,0.164155]
[1644027471095,0.01905507,41359.0,41356.0,0.164155]
[1644027471294,0.01820158,41359.0,41356.0,0.164155]
[1644027471498,0.01905507,41359.0,41356.0,0.164155]
[1644027471698,0.01905507,41359.0,41355.0,0.055453]
[1644027472494,0.01820158,41359.0,41355.0,0.055453]
[1644027472695,0.01905507,41359.0,41355.0,0.055453]
[1644027473498,0.01905507,41359.0,41356.0,0.05]
[1644027473700,0.01820158,41359.0,41358.0,0.060443]
[1644027473902,0.01784832,41359.0,41358.0,0.332378]
[1644027474100,0.5765,41368.0,41359.0,1.014138]
[1644027474101,0.08010482,41367.0,41359.0,1.014138]
[1644027474358,0.00070104,41367.0,41365.0,0.05]
[1644027474750,0.00070104,41367.0,41365.0,0.00503881]
[1644027474950,0.00070104,41367.0,41366.0,0.060437]
[1644027475652,0.00070104,41367.0,41366.0,0.224541]
[1644027476956,0.00070104,41367.0,41366.0,0.324541]
[1644027477654,0.00070104,41367.0,41362.0,0.120875]
[1644027478093,0.07857309,41365.0,41362.0,0.120875]
[1644027478296,0.00070104,41367.0,41362.0,0.120875]
[1644027478694,0.39525984,41365.0,41362.0,0.120875]
[1644027479295,0.21199152,41365.0,41362.0,0.120875]
[1644027479701,0.00155488,41367.0,41362.0,0.060437]
[1644027479901,0.00070104,41367.0,41362.0,0.060437]
[1644027480096,0.00085385,41366.0,41362.0,0.060437]
[1644027480495,0.00085385,41366.0,41362.0,0.110437]
[1644027480896,0.00070104,41367.0,41362.0,0.110437]
[1644027481097,0.00070104,41367.0,41362.0,0.060437]
[1644027481298,0.00085384,41366.0,41360.0,0.06044]
[1644027481768,0.00085384,41366.0,41359.0,0.2637]
[1644027482161,0.25787756,41364.0,41359.0,0.1137]
[1644027482357,0.25787756,41364.0,41359.0,0.060442]
[1644027482858,0.30637756,41364.0,41359.0,0.060442]
[1644027483257,0.30637756,41364.0,41359.0,0.059942]
[1644027483661,0.30723144,41364.0,41359.0,0.059942]
[1644027483860,0.30723144,41364.0,41357.0,0.060445]
[1644027483861,0.36767544,41364.0,41357.0,0.060445]
[1644027484068,0.3,41363.0,41354.0,0.05085407]
[1644027484262,0.07662253,41355.0,41354.0,0.00085407]
[1644027484461,0.0485,41355.0,41354.0,0.00085407]
[1644027484665,0.0485,41355.0,41347.0,0.01937191]
[1644027484861,0.0485,41355.0,41352.0,0.00085405]
[1644027484862,0.20467578,41355.0,41352.0,0.00085405]
[1644027485503,0.06812659,41354.0,41352.0,0.00085405]
[1644027485702,0.0485,41353.0,41352.0,0.00085405]
[1644027485904,0.0485,41353.0,41347.0,0.16190612]
[1644027486803,0.0485,41353.0,41346.0,0.2]
[1644027487208,0.06046,41352.0,41348.0,0.00085362]
[1644027487406,0.10896,41352.0,41348.0,0.00085362]
[1644027487804,0.10896,41352.0,41348.0,0.16493587]
[1644027488005,0.10896,41352.0,41348.0,0.00085362]
[1644027488204,0.10896,41352.0,41346.0,0.05]
[1644027488405,0.10896,41352.0,41348.0,0.00085362]
[1644027490543,0.10896,41352.0,41346.0,0.05]
[1644027490763,0.10896,41352.0,41348.0,0.00085362]
[1644027491146,0.0485,41352.0,41348.0,0.00085362]
[1644027491545,0.0485,41352.0,41350.0,0.05]
[1644027491949,0.16583747,41351.0,41350.0,0.05]
[1644027492253,0.21433747,41351.0,41348.0,0.00085362]
[1644027492451,0.89600239,41350.0,41348.0,0.00085362]
[1644027492651,0.9547,41349.0,41348.0,0.00085362]
[1644027492852,1.285973,41349.0,41348.0,0.00085362]
[1644027493102,0.06048363,41346.0,41335.0,0.01902287]
[1644027493302,1.499583,41349.0,41335.0,0.01902287]
[1644027493303,0.18457104,41338.0,41335.0,0.03724543]
[1644027493500,0.0485,41337.0,41335.0,0.01822256]
[1644027493698,0.23805462,41336.0,41335.0,0.01822256]
[1644027493900,0.28655462,41336.0,41335.0,0.01822256]
[1644027494100,0.61782762,41336.0,41335.0,0.01822256]
[1644027494706,0.379773,41336.0,41335.0,0.01822256]
[1644027494909,0.0485,41336.0,41335.0,0.01822256]
[1644027495504,0.0485,41336.0,41330.0,0.060483]
[1644027495703,0.0485,41336.0,41333.0,0.00085306]
[1644027496108,0.0485,41336.0,41335.0,0.05]
[1644027496309,0.0485,41336.0,41333.0,0.06133206]
[1644027496507,0.0485,41336.0,41335.0,0.05]
[1644027497145,0.0485,41336.0,41333.0,0.060479]
[1644027497746,0.0485,41336.0,41335.0,0.05]
[1644027499948,0.0485,41336.0,41333.0,0.060479]
[1644027500349,0.0485,41336.0,41332.0,0.160947]
[1644027500609,0.0485,41336.0,41332.0,0.16179984]
[1644027501508,0.0485,41336.0,41332.0,0.160947]
[1644027502008,0.0485,41336.0,41332.0,0.05]
[1644027502209,0.0485,41336.0,41329.0,0.05]
[1644027502507,0.0485,41336.0,41332.0,0.05]
[1644027503107,0.108987,41336.0,41332.0,0.05]
[1644027504110,0.108987,41336.0,41329.0,0.05]
[1644027504960,0.0485,41336.0,41329.0,0.05]
[1644027505361,0.0485,41336.0,41330.0,0.00085095]
[1644027506160,0.0485,41336.0,41332.0,0.05]
[1644027507160,0.0485,41336.0,41332.0,0.045]
[1644027507362,0.005,41335.0,41334.0,0.045]
[1644027510201,0.0485,41336.0,41330.0,0.26048]
[1644027510899,0.0485,41336.0,41331.0,0.16855635]
[1644027511100,0.0485,41336.0,41332.0,0.05]
[1644027511500,0.0485,41336.0,41333.0,0.060477]
[1644027512144,0.0485,41336.0,41335.0,0.05]
[1644027512346,0.0485,41336.0,41333.0,0.060477]
[1644027513046,0.0485,41336.0,41333.0,0.05]
[1644027513250,0.0485,41336.0,41331.0,0.06048]
[1644027513646,0.0485,41336.0,41332.0,0.0508485]
[1644027514747,0.0485,41336.0,41332.0,0.05]
[1644027514947,0.0485,41336.0,41332.0,0.05084851]
[1644027515149,0.0485,41336.0,41333.0,0.05]
[1644027515494,0.0485,41336.0,41333.0,0.110476]
[1644027517296,0.0485,41336.0,41333.0,0.17095187]
[1644027517497,0.165,41342.0,41334.0,0.120947]
[1644027517697,0.165,41342.0,41338.0,0.060472]
[1644027517897,0.0485,41342.0,41338.0,0.060472]
[1644027518502,0.0485,41342.0,41338.0,0.06132043]
[1644027518697,0.331273,41341.0,41338.0,0.06132043]
[1644027519097,0.28452728,41344.0,41338.0,0.06132043]
[1644027519098,0.331273,41340.0,41338.0,0.06132043]
[1644027519346,0.28452728,41344.0,41338.0,0.06132043]
[1644027519547,0.331273,41343.0,41338.0,0.060472]
[1644027520647,0.16166369,41341.0,41338.0,0.060472]
[1644027520850,0.331273,41343.0,41338.0,0.06132043]
[1644027521750,0.49745954,41343.0,41338.0,0.06132043]
[1644027522248,0.331273,41343.0,41338.0,0.06132043]
[1644027522451,0.0485,41345.0,41338.0,0.12179092]
[1644027522649,0.29331594,41348.0,41340.0,0.060469]
[1644027522852,0.331273,41346.0,41340.0,0.060469]
[1644027523298,0.331273,41346.0,41341.0,0.00084839]
[1644027523499,0.331273,41344.0,41341.0,0.00084839]
[1644027524298,0.301273,41344.0,41340.0,0.060469]
[1644027524500,0.301273,41344.0,41340.0,0.1113174]
[1644027524702,0.18160479,41346.0,41340.0,0.1113174]
[1644027524901,0.25896078,41348.0,41340.0,0.1113174]
[1644027525098,0.331281,41346.0,41340.0,0.1113174]
[1644027525502,0.5523,41347.0,41340.0,0.110469]
[1644027525801,0.5523,41347.0,41342.0,0.06047]
[1644027526102,0.3642,41349.0,41344.0,0.2003715]
[1644027526305,0.0485,41351.0,41344.0,0.2003715]
[1644027526502,0.14137415,41354.0,41344.0,0.2003715]
[1644027526760,0.331281,41353.0,41344.0,0.2003715]
[1644027527053,0.14137415,41354.0,41346.0,0.060461]
[1644027527251,0.01977415,41354.0,41346.0,0.060461]
[1644027527451,0.331281,41355.0,41346.0,0.060461]
[1644027527651,0.331281,41356.0,41346.0,0.110461]
[1644027527852,0.08845316,41359.0,41346.0,0.110461]
[1644027528050,0.15000464,41354.0,41348.0,0.0008483]
[1644027528252,0.40264515,41354.0,41348.0,0.0008483]
[1644027529252,0.40264515,41354.0,41349.0,0.0008483]
[1644027530251,0.40264515,41354.0,41345.0,0.40211002]
[1644027530505,0.40264515,41354.0,41349.0,0.00084829]
[1644027531104,0.331281,41353.0,41349.0,0.00084829]
[1644027531508,0.331281,41353.0,41344.0,0.2003715]
[1644027531707,0.40264515,41354.0,41349.0,0.0008483]
[1644027531907,0.331281,41353.0,41349.0,0.0008483]
[1644027532108,0.060465,41352.0,41349.0,0.0008483]
[1644027532710,0.060465,41352.0,41346.0,0.05]
[1644027532909,0.060465,41352.0,41348.0,0.0008483]
[1644027533712,0.331281,41351.0,41348.0,0.0008483]
[1644027534016,0.331281,41351.0,41348.0,0.00084831]
[1644027535145,0.13074186,41352.0,41342.0,0.119]
[1644027535344,0.331281,41351.0,41347.0,0.00084832]
[1644027536345,0.2494278,41345.0,41341.0,0.15569327]
[1644027536745,0.2494278,41345.0,41340.0,0.120925]
[1644027537345,0.2494278,41345.0,41338.0,0.030034]
[1644027537545,0.060475,41344.0,41338.0,0.030034]